[Event "Titled Tuesday Blitz February 28 Early 2023"]
[White "Priasmoro, Novendra"]
[Black "Mushini Ajay"]
[WhiteFideId "7105029"]
[BlackFideId "35066188"]
[WhiteElo "2412"]
[BlackElo "2145"]
[Result "1-0"]
[Round "02"]
[TimeControl "180+2"]
[Date "2023.02.28"]
[WhiteClock "0:00:19"]
[BlackClock "0:00:08"]

1. e4 {[%clk 0:03:00]}  c5 {[%clk 0:02:59]} 2. Nf3 {[%clk 0:03:00]}  d6 {[%clk 0:02:59]} 3. Bb5+ {[%clk 0:03:00]}  Nd7 {[%clk 0:02:58]} 4. d4 {[%clk 0:03:00]}  cxd4 {[%clk 0:02:58]} 5. Qxd4 {[%clk 0:03:01]}  a6 {[%clk 0:02:58]} 6. Bxd7+ {[%clk 0:03:01]}  Bxd7 {[%clk 0:02:58]} 7. Nc3 {[%clk 0:03:02]}  e5 {[%clk 0:02:57]} 8. Qd3 {[%clk 0:03:02]}  h6 {[%clk 0:02:57]} 9. Be3 {[%clk 0:03:03]}  Nf6 {[%clk 0:02:57]} 10. Nd2 {[%clk 0:02:59]}  b5 {[%clk 0:02:56]} 11. O-O {[%clk 0:02:46]}  Be7 {[%clk 0:02:55]} 12. b4 {[%clk 0:02:46]}  O-O {[%clk 0:02:53]} 13. a4 {[%clk 0:02:47]}  Rc8 {[%clk 0:02:51]} 14. axb5 {[%clk 0:02:45]}  axb5 {[%clk 0:02:51]} 15. Ra7 {[%clk 0:02:40]}  d5 {[%clk 0:02:04]} 16. Nxd5 {[%clk 0:02:18]}  Nxd5 {[%clk 0:02:02]} 17. Qxd5 {[%clk 0:02:12]}  Be6 {[%clk 0:01:57]} 18. Qxb5 {[%clk 0:02:11]}  Rxc2 {[%clk 0:01:56]} 19. Qb7 {[%clk 0:01:48]}  Bg5 {[%clk 0:01:43]} 20. Bxg5 {[%clk 0:01:42]}  Qxg5 {[%clk 0:01:43]} 21. Nf3 {[%clk 0:01:42]}  Qf4 {[%clk 0:01:37]} 22. Ra5 {[%clk 0:01:21]}  Bc4 {[%clk 0:01:11]} 23. Re1 {[%clk 0:01:15]}  Be2 {[%clk 0:01:06]} 24. Nxe5 {[%clk 0:01:03]}  Ba6 {[%clk 0:01:01]} 25. Qb6 {[%clk 0:01:04]}  Re8 {[%clk 0:00:16]} 26. g3 {[%clk 0:00:48]}  Qd2 {[%clk 0:00:13]} 27. Qe3 {[%clk 0:00:45]}  Qxb4 {[%clk 0:00:13]} 28. Rxa6 {[%clk 0:00:41]}  Rxe5 {[%clk 0:00:13]} 29. Ra8+ {[%clk 0:00:41]}  Kh7 {[%clk 0:00:13]} 30. h4 {[%clk 0:00:35]}  f5 {[%clk 0:00:13]} 31. Rd1 {[%clk 0:00:22]}  Rxe4 {[%clk 0:00:13]} 32. Qf3 {[%clk 0:00:22]}  Re1+ {[%clk 0:00:11]} 33. Kh2 {[%clk 0:00:19]}  Rf1 {[%clk 0:00:09]} 34. Qxf5+ {[%clk 0:00:18]}  g6 {[%clk 0:00:08]} 35. Qf7# {[%clk 0:00:19]} 1-0


[Site "https://www.chess.com"]

[Event "Titled Tuesday Blitz February 28 Early 2023"]
[White "Van Dael, Siem"]
[Black "Williams, Simon K"]
[WhiteFideId "1049771"]
[BlackFideId "404454"]
[WhiteElo "2336"]
[BlackElo "2468"]
[Result "1-0"]
[Round "02"]
[TimeControl "180+2"]
[Date "2023.02.28"]
[WhiteClock "0:00:03"]
[BlackClock "0:00:02"]

1. h4 {[%clk 0:02:57]}  e5 {[%clk 0:02:57]} 2. c4 {[%clk 0:02:57]}  Nc6 {[%clk 0:02:49]} 3. Nc3 {[%clk 0:02:55]}  f5 {[%clk 0:02:49]} 4. b3 {[%clk 0:02:47]}  Nf6 {[%clk 0:02:48]} 5. Bb2 {[%clk 0:02:47]}  Bc5 {[%clk 0:02:48]} 6. e3 {[%clk 0:02:47]}  O-O {[%clk 0:02:46]} 7. Nf3 {[%clk 0:02:46]}  e4 {[%clk 0:02:44]} 8. Ng5 {[%clk 0:02:45]}  Ne5 {[%clk 0:02:28]} 9. Nd5 {[%clk 0:02:31]}  d6 {[%clk 0:02:21]} 10. b4 {[%clk 0:02:17]}  Nxd5 {[%clk 0:02:07]} 11. bxc5 {[%clk 0:02:12]}  Nb4 {[%clk 0:02:02]} 12. Bxe5 {[%clk 0:01:59]}  dxe5 {[%clk 0:02:02]} 13. Qb3 {[%clk 0:01:53]}  Na6 {[%clk 0:01:40]} 14. Qc3 {[%clk 0:01:44]}  Qe7 {[%clk 0:01:34]} 15. c6 {[%clk 0:01:36]}  Nc5 {[%clk 0:01:33]} 16. cxb7 {[%clk 0:01:29]}  Bxb7 {[%clk 0:01:33]} 17. Be2 {[%clk 0:01:20]}  h6 {[%clk 0:01:31]} 18. Nh3 {[%clk 0:01:18]}  Rad8 {[%clk 0:01:18]} 19. Rb1 {[%clk 0:01:08]}  Bc6 {[%clk 0:01:17]} 20. O-O {[%clk 0:01:01]}  f4 {[%clk 0:01:15]} 21. Rb5 {[%clk 0:00:19]}  Bxb5 {[%clk 0:01:06]} 22. cxb5 {[%clk 0:00:20]}  f3 {[%clk 0:00:49]} 23. Bc4+ {[%clk 0:00:17]}  Kh8 {[%clk 0:00:47]} 24. g3 {[%clk 0:00:17]}  g5 {[%clk 0:00:38]} 25. Kh2 {[%clk 0:00:15]}  g4 {[%clk 0:00:34]} 26. Nf4 {[%clk 0:00:15]}  Kh7 {[%clk 0:00:28]} 27. Nd5 {[%clk 0:00:07]}  Qd6 {[%clk 0:00:27]} 28. d4 {[%clk 0:00:05]}  exd3 {[%clk 0:00:24]} 29. e4 {[%clk 0:00:03]}  Kg7 {[%clk 0:00:20]} 30. Bxd3 {[%clk 0:00:03]}  Ne6 {[%clk 0:00:18]} 31. Bc4 {[%clk 0:00:03]}  Nd4 {[%clk 0:00:19]} 32. Rd1 {[%clk 0:00:03]}  Rf7 {[%clk 0:00:18]} 33. Rxd4 {[%clk 0:00:03]}  exd4 {[%clk 0:00:18]} 34. Qxd4+ {[%clk 0:00:04]}  Kg6 {[%clk 0:00:18]} 35. Qd3 {[%clk 0:00:04]}  Qe5 {[%clk 0:00:18]} 36. Qe3 {[%clk 0:00:04]}  h5 {[%clk 0:00:18]} 37. Nf4+ {[%clk 0:00:04]}  Kh7 {[%clk 0:00:18]} 38. Bxf7 {[%clk 0:00:04]}  Qd4 {[%clk 0:00:15]} 39. Bg6+ {[%clk 0:00:04]}  Kh8 {[%clk 0:00:14]} 40. Qxd4+ {[%clk 0:00:03]}  Rxd4 {[%clk 0:00:14]} 41. Bxh5 {[%clk 0:00:04]}  Rd2 {[%clk 0:00:15]} 42. Bxg4 {[%clk 0:00:04]}  Rxf2+ {[%clk 0:00:15]} 43. Kg1 {[%clk 0:00:05]}  Rxa2 {[%clk 0:00:14]} 44. Bxf3 {[%clk 0:00:05]}  Rb2 {[%clk 0:00:15]} 45. Be2 {[%clk 0:00:04]}  Rb4 {[%clk 0:00:12]} 46. Bd3 {[%clk 0:00:04]}  Rb3 {[%clk 0:00:10]} 47. e5 {[%clk 0:00:04]}  Kg7 {[%clk 0:00:08]} 48. e6 {[%clk 0:00:03]}  Kf6 {[%clk 0:00:08]} 49. Kf2 {[%clk 0:00:02]}  Rb2+ {[%clk 0:00:08]} 50. Ke3 {[%clk 0:00:03]}  Rb4 {[%clk 0:00:02]} 51. Nd5+ {[%clk 0:00:03]} 1-0


[Site "https://www.chess.com"]

[Event "Titled Tuesday Blitz February 28 Early 2023"]
[White "Atanasov, Anthony"]
[Black "Gatterer, Florian"]
[WhiteFideId "2623897"]
[BlackFideId "811688"]
[WhiteElo "2070"]
[BlackElo "2221"]
[Result "1/2-1/2"]
[Round "02"]
[TimeControl "180+2"]
[Date "2023.02.28"]
[WhiteClock "0:00:02"]
[BlackClock "0:01:17"]

1. d4 {[%clk 0:03:00]}  Nf6 {[%clk 0:02:59]} 2. Nf3 {[%clk 0:03:01]}  d5 {[%clk 0:02:59]} 3. Bf4 {[%clk 0:03:01]}  c5 {[%clk 0:02:58]} 4. e3 {[%clk 0:03:02]}  Nc6 {[%clk 0:02:59]} 5. Nbd2 {[%clk 0:03:03]}  Bg4 {[%clk 0:02:58]} 6. c3 {[%clk 0:03:02]}  e6 {[%clk 0:02:59]} 7. Qa4 {[%clk 0:03:01]}  Bd6 {[%clk 0:02:50]} 8. Ba6 {[%clk 0:03:00]}  Bxf4 {[%clk 0:02:38]} 9. Bxb7 {[%clk 0:03:00]}  O-O {[%clk 0:02:35]} 10. Bxc6 {[%clk 0:02:47]}  Rb8 {[%clk 0:02:17]} 11. exf4 {[%clk 0:02:45]}  cxd4 {[%clk 0:02:15]} 12. Nxd4 {[%clk 0:02:41]}  Rxb2 {[%clk 0:02:13]} 13. h3 {[%clk 0:02:36]}  Bh5 {[%clk 0:02:08]} 14. Qa3 {[%clk 0:02:33]}  Rxd2 {[%clk 0:01:57]} 15. Kxd2 {[%clk 0:02:22]}  Ne4+ {[%clk 0:01:56]} 16. Ke1 {[%clk 0:02:17]}  Qh4 {[%clk 0:01:50]} 17. g3 {[%clk 0:02:06]}  Nxg3 {[%clk 0:01:32]} 18. fxg3 {[%clk 0:02:04]}  Qxg3+ {[%clk 0:01:32]} 19. Kd2 {[%clk 0:01:59]}  Qg2+ {[%clk 0:01:22]} 20. Kd3 {[%clk 0:01:44]}  Qe4+ {[%clk 0:01:22]} 21. Kd2 {[%clk 0:01:44]}  Qg2+ {[%clk 0:01:21]} 22. Ke3 {[%clk 0:00:02]}  Qe4+ {[%clk 0:01:17]} 23. Kd2 {[%clk 0:00:02]}  Qg2+ {[%clk 0:01:17]} 1/2-1/2


[Site "https://www.chess.com"]

[Event "Titled Tuesday Blitz February 28 Early 2023"]
[White "Dragomirescu, Angela"]
[Black "Sarkar, Justin"]
[WhiteFideId "1209914"]
[BlackFideId "2010011"]
[WhiteElo "2171"]
[BlackElo "2189"]
[Result "1-0"]
[Round "02"]
[TimeControl "180+2"]
[Date "2023.02.28"]
[WhiteClock "0:01:42"]
[BlackClock "0:00:01"]

1. e4 {[%clk 0:03:00]}  e5 {[%clk 0:02:52]} 2. Nf3 {[%clk 0:02:59]}  Nc6 {[%clk 0:02:52]} 3. Bb5 {[%clk 0:03:00]}  a6 {[%clk 0:02:51]} 4. Ba4 {[%clk 0:03:00]}  Nf6 {[%clk 0:02:49]} 5. O-O {[%clk 0:03:01]}  Nxe4 {[%clk 0:02:35]} 6. d4 {[%clk 0:02:57]}  b5 {[%clk 0:02:34]} 7. Bb3 {[%clk 0:02:56]}  d5 {[%clk 0:02:34]} 8. dxe5 {[%clk 0:02:43]}  Be6 {[%clk 0:02:34]} 9. Qe2 {[%clk 0:02:41]}  Bc5 {[%clk 0:02:17]} 10. Nbd2 {[%clk 0:02:39]}  Nxd2 {[%clk 0:01:19]} 11. Bxd2 {[%clk 0:02:40]}  O-O {[%clk 0:01:16]} 12. c3 {[%clk 0:02:40]}  Bg4 {[%clk 0:01:08]} 13. Bf4 {[%clk 0:02:40]}  Na5 {[%clk 0:00:32]} 14. Bc2 {[%clk 0:02:39]}  Bb6 {[%clk 0:00:31]} 15. Rfe1 {[%clk 0:02:38]}  Qe7 {[%clk 0:00:17]} 16. h3 {[%clk 0:02:37]}  Bh5 {[%clk 0:00:16]} 17. g4 {[%clk 0:02:37]}  Bg6 {[%clk 0:00:16]} 18. Nd4 {[%clk 0:02:37]}  Bxd4 {[%clk 0:00:08]} 19. cxd4 {[%clk 0:02:34]}  c5 {[%clk 0:00:08]} 20. Qd2 {[%clk 0:01:55]}  Nc4 {[%clk 0:00:07]} 21. Qe2 {[%clk 0:01:50]}  cxd4 {[%clk 0:00:05]} 22. Bg3 {[%clk 0:01:41]}  Bxc2 {[%clk 0:00:01]} 23. Qxc2 {[%clk 0:01:42]} 1-0


[Site "https://www.chess.com"]

[Event "Titled Tuesday Blitz February 28 Early 2023"]
[White "Mesa Cruz, Juan Carlos"]
[Black "Thorhallsson, Simon"]
[WhiteFideId "6423400"]
[BlackFideId "2310090"]
[WhiteElo "2119"]
[BlackElo "2108"]
[Result "0-1"]
[Round "02"]
[TimeControl "180+2"]
[Date "2023.02.28"]
[WhiteClock "0:00:41"]
[BlackClock "0:00:40"]

1. e4 {[%clk 0:02:36]}  c5 {[%clk 0:02:58]} 2. Nf3 {[%clk 0:02:27]}  e6 {[%clk 0:02:58]} 3. c3 {[%clk 0:02:14]}  d5 {[%clk 0:02:57]} 4. exd5 {[%clk 0:02:14]}  Qxd5 {[%clk 0:02:57]} 5. Na3 {[%clk 0:02:13]}  Nf6 {[%clk 0:02:55]} 6. d4 {[%clk 0:02:12]}  cxd4 {[%clk 0:02:52]} 7. Nb5 {[%clk 0:02:12]}  Na6 {[%clk 0:02:50]} 8. Qxd4 {[%clk 0:02:07]}  Qxd4 {[%clk 0:02:48]} 9. Nfxd4 {[%clk 0:02:07]}  Be7 {[%clk 0:02:46]} 10. Bf4 {[%clk 0:02:06]}  O-O {[%clk 0:02:46]} 11. f3 {[%clk 0:01:54]}  Nd5 {[%clk 0:02:41]} 12. Bd2 {[%clk 0:01:53]}  Bd7 {[%clk 0:02:28]} 13. Bd3 {[%clk 0:01:44]}  Nc5 {[%clk 0:02:27]} 14. Bc2 {[%clk 0:01:45]}  a6 {[%clk 0:02:26]} 15. Na3 {[%clk 0:01:44]}  Na4 {[%clk 0:02:23]} 16. Bxa4 {[%clk 0:01:35]}  Bxa4 {[%clk 0:02:21]} 17. Nc4 {[%clk 0:01:35]}  Rfd8 {[%clk 0:01:58]} 18. O-O {[%clk 0:01:20]}  Rac8 {[%clk 0:01:49]} 19. Ne3 {[%clk 0:01:20]}  e5 {[%clk 0:01:21]} 20. Ndf5 {[%clk 0:01:09]}  Bf8 {[%clk 0:01:20]} 21. Nxd5 {[%clk 0:01:06]}  Rxd5 {[%clk 0:01:19]} 22. Be3 {[%clk 0:01:07]}  Bd7 {[%clk 0:01:15]} 23. Ng3 {[%clk 0:01:05]}  Be6 {[%clk 0:01:14]} 24. Rfd1 {[%clk 0:01:05]}  Rcd8 {[%clk 0:01:13]} 25. Rxd5 {[%clk 0:01:05]}  Rxd5 {[%clk 0:01:13]} 26. Kf2 {[%clk 0:01:04]}  f5 {[%clk 0:01:07]} 27. f4 {[%clk 0:01:03]}  exf4 {[%clk 0:01:04]} 28. Bxf4 {[%clk 0:01:04]}  Bc5+ {[%clk 0:01:03]} 29. Kf3 {[%clk 0:01:01]}  Rd3+ {[%clk 0:00:59]} 30. Ke2 {[%clk 0:00:53]}  Bc4 {[%clk 0:00:56]} 31. b3 {[%clk 0:00:53]}  Rxg3+ {[%clk 0:00:56]} 32. bxc4 {[%clk 0:00:53]}  Rxg2+ {[%clk 0:00:56]} 33. Kf3 {[%clk 0:00:51]}  Rc2 {[%clk 0:00:52]} 34. Be5 {[%clk 0:00:52]}  g5 {[%clk 0:00:41]} 35. h3 {[%clk 0:00:46]}  h5 {[%clk 0:00:40]} 36. Rd1 {[%clk 0:00:44]}  Rf2+ {[%clk 0:00:39]} 37. Kg3 {[%clk 0:00:41]}  h4# {[%clk 0:00:40]} 0-1


[Site "https://www.chess.com"]

[Event "Titled Tuesday Blitz February 28 Early 2023"]
[White "Urbina Perez, Juan Antonio"]
[Black "Kovacsy, Barnabas"]
[WhiteFideId "2217368"]
[BlackFideId "769290"]
[WhiteElo "2197"]
[BlackElo "2130"]
[Result "0-1"]
[Round "02"]
[TimeControl "180+2"]
[Date "2023.02.28"]
[WhiteClock "0:00:04"]
[BlackClock "0:00:13"]

1. d4 {[%clk 0:03:00]}  Nf6 {[%clk 0:02:59]} 2. Nf3 {[%clk 0:02:58]}  g6 {[%clk 0:02:59]} 3. e3 {[%clk 0:02:57]}  Bg7 {[%clk 0:02:59]} 4. Be2 {[%clk 0:02:58]}  O-O {[%clk 0:03:00]} 5. O-O {[%clk 0:02:59]}  d6 {[%clk 0:03:00]} 6. c4 {[%clk 0:02:59]}  c5 {[%clk 0:02:59]} 7. Nc3 {[%clk 0:02:58]}  b6 {[%clk 0:02:57]} 8. Rb1 {[%clk 0:02:55]}  Bb7 {[%clk 0:02:57]} 9. d5 {[%clk 0:02:51]}  e5 {[%clk 0:02:53]} 10. e4 {[%clk 0:02:42]}  Nbd7 {[%clk 0:02:49]} 11. a3 {[%clk 0:02:42]}  Ne8 {[%clk 0:02:48]} 12. b4 {[%clk 0:02:41]}  Qe7 {[%clk 0:02:35]} 13. Bd2 {[%clk 0:02:22]}  f5 {[%clk 0:02:27]} 14. Ng5 {[%clk 0:02:20]}  Nc7 {[%clk 0:02:21]} 15. Nb5 {[%clk 0:02:05]}  Nxb5 {[%clk 0:02:18]} 16. cxb5 {[%clk 0:02:06]}  Rfe8 {[%clk 0:01:55]} 17. Ne6 {[%clk 0:02:04]}  Nf8 {[%clk 0:01:55]} 18. Nxf8 {[%clk 0:01:50]}  Rxf8 {[%clk 0:01:54]} 19. bxc5 {[%clk 0:01:51]}  dxc5 {[%clk 0:01:49]} 20. f3 {[%clk 0:01:51]}  f4 {[%clk 0:01:36]} 21. Bc3 {[%clk 0:01:41]}  Qd6 {[%clk 0:01:35]} 22. a4 {[%clk 0:01:39]}  g5 {[%clk 0:01:28]} 23. Bc4 {[%clk 0:01:40]}  Kf7 {[%clk 0:01:17]} 24. a5 {[%clk 0:01:39]}  Ke7 {[%clk 0:01:16]} 25. a6 {[%clk 0:01:31]}  Bc8 {[%clk 0:01:15]} 26. Kh1 {[%clk 0:01:30]}  Bd7 {[%clk 0:01:15]} 27. g3 {[%clk 0:01:26]}  Bf6 {[%clk 0:01:12]} 28. Rg1 {[%clk 0:01:25]}  Rg8 {[%clk 0:01:10]} 29. gxf4 {[%clk 0:01:23]}  gxf4 {[%clk 0:01:09]} 30. Qe2 {[%clk 0:01:22]}  Rg6 {[%clk 0:01:07]} 31. Rg2 {[%clk 0:01:19]}  Rag8 {[%clk 0:01:06]} 32. Rbg1 {[%clk 0:01:19]}  Bh3 {[%clk 0:00:52]} 33. Rxg6 {[%clk 0:01:16]}  Rxg6 {[%clk 0:00:51]} 34. Qf2 {[%clk 0:01:10]}  Qd8 {[%clk 0:00:35]} 35. Rxg6 {[%clk 0:01:09]}  hxg6 {[%clk 0:00:35]} 36. Bf1 {[%clk 0:01:09]}  Bc8 {[%clk 0:00:27]} 37. Qg1 {[%clk 0:01:05]}  Qg8 {[%clk 0:00:25]} 38. Bg2 {[%clk 0:01:02]}  Kd6 {[%clk 0:00:25]} 39. Qf1 {[%clk 0:00:59]}  g5 {[%clk 0:00:25]} 40. Bh3 {[%clk 0:00:49]}  g4 {[%clk 0:00:24]} 41. fxg4 {[%clk 0:00:48]}  Qg6 {[%clk 0:00:17]} 42. Qf3 {[%clk 0:00:47]}  Bh4 {[%clk 0:00:14]} 43. Kg2 {[%clk 0:00:41]}  Bg5 {[%clk 0:00:13]} 44. Kf2 {[%clk 0:00:39]}  Qh6 {[%clk 0:00:13]} 45. Kg2 {[%clk 0:00:36]}  Bd7 {[%clk 0:00:13]} 46. Be1 {[%clk 0:00:36]}  Bxb5 {[%clk 0:00:13]} 47. Qb3 {[%clk 0:00:30]}  Bd7 {[%clk 0:00:12]} 48. Bf2 {[%clk 0:00:28]}  Qg6 {[%clk 0:00:12]} 49. Qd3 {[%clk 0:00:23]}  Bf6 {[%clk 0:00:12]} 50. Kf3 {[%clk 0:00:23]}  Qh6 {[%clk 0:00:12]} 51. Kg2 {[%clk 0:00:23]}  Qg5 {[%clk 0:00:12]} 52. Kf3 {[%clk 0:00:22]}  Qg6 {[%clk 0:00:12]} 53. Qc4 {[%clk 0:00:19]}  Qg8 {[%clk 0:00:11]} 54. Be1 {[%clk 0:00:16]}  Bg5 {[%clk 0:00:12]} 55. Bf2 {[%clk 0:00:16]}  Qe8 {[%clk 0:00:12]} 56. Kg2 {[%clk 0:00:15]}  Bb5 {[%clk 0:00:12]} 57. Qa2 {[%clk 0:00:14]}  Qc8 {[%clk 0:00:13]} 58. Kh1 {[%clk 0:00:13]}  Qxa6 {[%clk 0:00:13]} 59. Qc2 {[%clk 0:00:11]}  Qa4 {[%clk 0:00:13]} 60. Qb1 {[%clk 0:00:10]}  Qc4 {[%clk 0:00:13]} 61. Bg2 {[%clk 0:00:10]}  Qd3 {[%clk 0:00:14]} 62. Qa1 {[%clk 0:00:10]}  a5 {[%clk 0:00:13]} 63. Qb2 {[%clk 0:00:07]}  a4 {[%clk 0:00:13]} 64. Bg1 {[%clk 0:00:05]}  a3 {[%clk 0:00:13]} 65. Qa2 {[%clk 0:00:05]}  Bc4 {[%clk 0:00:13]} 66. Qa1 {[%clk 0:00:03]}  a2 {[%clk 0:00:13]} 67. Qb2 {[%clk 0:00:04]}  Qb1 {[%clk 0:00:13]} 0-1


[Site "https://www.chess.com"]

[Event "Titled Tuesday Blitz February 28 Early 2023"]
[White "Kodinets, Konstantin L."]
[Black "Begunov, Konstantin"]
[WhiteFideId "4122011"]
[BlackFideId "4118510"]
[WhiteElo "2447"]
[BlackElo "2118"]
[Result "1-0"]
[Round "02"]
[TimeControl "180+2"]
[Date "2023.02.28"]
[WhiteClock "0:00:24"]
[BlackClock "0:00:01"]

1. d4 {[%clk 0:02:54]}  d5 {[%clk 0:02:59]} 2. Nf3 {[%clk 0:02:55]}  c6 {[%clk 0:03:00]} 3. Bf4 {[%clk 0:02:55]}  Nf6 {[%clk 0:03:00]} 4. Nbd2 {[%clk 0:02:56]}  Bf5 {[%clk 0:02:59]} 5. c4 {[%clk 0:02:56]}  e6 {[%clk 0:02:59]} 6. Qb3 {[%clk 0:02:56]}  Qc8 {[%clk 0:02:50]} 7. h3 {[%clk 0:02:56]}  Nbd7 {[%clk 0:02:47]} 8. e3 {[%clk 0:02:56]}  Ne4 {[%clk 0:02:46]} 9. Be2 {[%clk 0:02:55]}  Be7 {[%clk 0:02:42]} 10. O-O {[%clk 0:02:55]}  O-O {[%clk 0:02:41]} 11. Rfc1 {[%clk 0:02:54]}  Nxd2 {[%clk 0:02:36]} 12. Nxd2 {[%clk 0:02:54]}  Nf6 {[%clk 0:02:36]} 13. Bf3 {[%clk 0:02:53]}  Qd7 {[%clk 0:02:34]} 14. Bg5 {[%clk 0:02:50]}  Bg6 {[%clk 0:02:26]} 15. Qc3 {[%clk 0:02:38]}  Ne4 {[%clk 0:02:19]} 16. Bxe4 {[%clk 0:02:37]}  Bxg5 {[%clk 0:02:14]} 17. Bxg6 {[%clk 0:02:36]}  hxg6 {[%clk 0:02:15]} 18. b4 {[%clk 0:02:36]}  Bf6 {[%clk 0:02:10]} 19. a4 {[%clk 0:02:32]}  Rfe8 {[%clk 0:02:10]} 20. Nf3 {[%clk 0:02:30]}  dxc4 {[%clk 0:02:03]} 21. Qxc4 {[%clk 0:02:29]}  Qd5 {[%clk 0:02:03]} 22. Rab1 {[%clk 0:02:29]}  a6 {[%clk 0:01:55]} 23. b5 {[%clk 0:02:24]}  Qxc4 {[%clk 0:00:55]} 24. Rxc4 {[%clk 0:02:21]}  cxb5 {[%clk 0:00:55]} 25. axb5 {[%clk 0:02:22]}  a5 {[%clk 0:00:56]} 26. Rc7 {[%clk 0:02:01]}  b6 {[%clk 0:00:55]} 27. Rc6 {[%clk 0:02:00]}  Reb8 {[%clk 0:00:49]} 28. Ra1 {[%clk 0:01:55]}  a4 {[%clk 0:00:38]} 29. Rc4 {[%clk 0:01:48]}  a3 {[%clk 0:00:37]} 30. Rc3 {[%clk 0:01:47]}  Be7 {[%clk 0:00:35]} 31. Ne5 {[%clk 0:01:45]}  Bd6 {[%clk 0:00:18]} 32. Nc6 {[%clk 0:01:41]}  Rc8 {[%clk 0:00:18]} 33. Ra2 {[%clk 0:01:39]}  Kf8 {[%clk 0:00:17]} 34. e4 {[%clk 0:01:37]}  f6 {[%clk 0:00:16]} 35. e5 {[%clk 0:01:31]}  fxe5 {[%clk 0:00:15]} 36. dxe5 {[%clk 0:01:31]}  Bc5 {[%clk 0:00:16]} 37. Kf1 {[%clk 0:01:28]}  Ra4 {[%clk 0:00:15]} 38. Ke2 {[%clk 0:01:24]}  Rf4 {[%clk 0:00:14]} 39. f3 {[%clk 0:01:23]}  Rc7 {[%clk 0:00:14]} 40. g3 {[%clk 0:01:10]}  Ra4 {[%clk 0:00:13]} 41. h4 {[%clk 0:01:05]}  Rd7 {[%clk 0:00:12]} 42. f4 {[%clk 0:01:01]}  Ke8 {[%clk 0:00:11]} 43. Kf3 {[%clk 0:00:56]}  Rd1 {[%clk 0:00:10]} 44. Kg4 {[%clk 0:00:53]}  Kf7 {[%clk 0:00:10]} 45. Rxc5 {[%clk 0:00:48]}  bxc5 {[%clk 0:00:09]} 46. b6 {[%clk 0:00:49]}  Rb1 {[%clk 0:00:09]} 47. b7 {[%clk 0:00:49]}  c4 {[%clk 0:00:03]} 48. b8=Q {[%clk 0:00:45]}  Rxb8 {[%clk 0:00:04]} 49. Nxb8 {[%clk 0:00:45]}  c3 {[%clk 0:00:04]} 50. Nd7 {[%clk 0:00:41]}  c2 {[%clk 0:00:05]} 51. Rxc2 {[%clk 0:00:40]}  a2 {[%clk 0:00:05]} 52. Rxa2 {[%clk 0:00:37]}  Rxa2 {[%clk 0:00:06]} 53. Nc5 {[%clk 0:00:37]}  Ra3 {[%clk 0:00:06]} 54. Ne4 {[%clk 0:00:36]}  Rb3 {[%clk 0:00:05]} 55. Kg5 {[%clk 0:00:35]}  Re3 {[%clk 0:00:05]} 56. Nd6+ {[%clk 0:00:34]}  Ke7 {[%clk 0:00:03]} 57. g4 {[%clk 0:00:35]}  Rg3 {[%clk 0:00:02]} 58. Ne4 {[%clk 0:00:34]}  Rg1 {[%clk 0:00:02]} 59. Nd2 {[%clk 0:00:33]}  Kf7 {[%clk 0:00:03]} 60. Nf3 {[%clk 0:00:33]}  Rg3 {[%clk 0:00:03]} 61. Nd4 {[%clk 0:00:33]}  Rg1 {[%clk 0:00:03]} 62. Nb5 {[%clk 0:00:32]}  Rg3 {[%clk 0:00:03]} 63. h5 {[%clk 0:00:28]}  gxh5 {[%clk 0:00:02]} 64. Kxh5 {[%clk 0:00:29]}  Rf3 {[%clk 0:00:02]} 65. Kg5 {[%clk 0:00:29]}  Rf1 {[%clk 0:00:03]} 66. Nd6+ {[%clk 0:00:28]}  Ke7 {[%clk 0:00:03]} 67. Nc4 {[%clk 0:00:28]}  Kf7 {[%clk 0:00:03]} 68. Ne3 {[%clk 0:00:28]}  Rf3 {[%clk 0:00:04]} 69. Ng2 {[%clk 0:00:28]}  Rf2 {[%clk 0:00:04]} 70. Nh4 {[%clk 0:00:28]}  Rf1 {[%clk 0:00:04]} 71. Ng6 {[%clk 0:00:27]}  Rg1 {[%clk 0:00:03]} 72. Nh8+ {[%clk 0:00:25]}  Kg8 {[%clk 0:00:02]} 73. Ng6 {[%clk 0:00:25]}  Kf7 {[%clk 0:00:02]} 74. Nh4 {[%clk 0:00:24]}  Rf1 {[%clk 0:00:02]} 75. f5 {[%clk 0:00:24]}  exf5 {[%clk 0:00:01]} 76. gxf5 {[%clk 0:00:24]}  Re1 {[%clk 0:00:01]} 77. Ng6 {[%clk 0:00:24]} 1-0


[Site "https://www.chess.com"]